[Event "Chinese Championship-B Men 2024"]
[Site "Liaocheng"]
[Date "2024.04.24"]
[Round "4.1"]
[White "Hou, Yifan b"]
[Black "Xie, Kaifan"]
[Result "0-1"]
[WhiteElo "2161"]
[BlackElo "2393"]
[PlyCount "68"]
[EventDate "2024.04.24"]
[EventType "swiss"]
[EventCountry "CHN"]
[TimeControl "5400+30"]

1. d4 {[%emt 0:03:16]} Nf6 {[%emt 0:00:06]} 2. c4 {[%emt 0:00:10]} e6 {[%emt 0:00:16]} 3. Nf3 {[%emt 0:00:13]} d5 {[%emt 0:00:09]} 4. g3 {[%emt 0:00:26]} dxc4 {[%emt 0:00:08]} 5. Bg2 {[%emt 0:00:06]} a6 {[%emt 0:00:06]} 6. Ne5 {[%emt 0:02:21]} Bb4+ {[%emt 0:00:08]} 7. Bd2 {[%emt 0:00:46]} Qxd4 {[%emt 0:00:16]} 8. Bxb4 {[%emt 0:00:48]} Qxe5 {[%emt 0:00:02]} 9. Na3 {[%emt 0:02:07]} Nc6 {[%emt 0:10:36]} 10. Bc3 {[%emt 0:18:53]} Qc5 {[%emt 0:07:09]} 11. Rc1 {[%emt 0:09:47]} O-O {[%emt 0:11:08]} 12. Bxf6 {[%emt 0:16:40]} gxf6 {[%emt 0:00:08]} 13. Rxc4 {[%emt 0:00:36]} Qa5+ {[%emt 0:02:13]} 14. Rc3 {[%emt 0:01:49]} Rd8 {[%emt 0:02:28]} 15. Qb1 {[%emt 0:01:18]} Bd7 {[%emt 0:03:50]} 16. O-O {[%emt 0:07:09]} Nd4 {[%emt 0:05:51]} 17. Re1 {[%emt 0:03:37]} Bc6 {[%emt 0:04:23]} 18. Bxc6 {[%emt 0:03:20]} Nxc6 {[%emt 0:00:10]} 19. Qe4 {[%emt 0:01:09]} Qd5 {[%emt 0:08:26]} 20. Qg4+ {[%emt 0:03:24]} Qg5 {[%emt 0:00:42]} 21. Qf3 {[%emt 0:05:29]} Rd4 {[%emt 0:07:51]} 22. e3 {[%emt 0:03:15]} Rd5 {[%emt 0:01:38]} 23. h4 {[%emt 0:02:43]} Qg6 {[%emt 0:00:24]} 24. Nc4 {[%emt 0:04:02]} Rad8 {[%emt 0:01:31]} 25. e4 {[%emt 0:02:40]} Rd4 {[%emt 0:01:27]} 26. b3 {[%emt 0:02:32]} b5 {[%emt 0:04:22]} 27. Ne3 {[%emt 0:03:03]} Ne5 {[%emt 0:00:05]} 28. Qg2 {[%emt 0:00:32]} c5 {[%emt 0:06:05]} 29. Rf1 {[%emt 0:01:16]} Qxe4 {[%emt 0:08:33]} 30. Qxe4 {[%emt 0:00:33]} Rxe4 {[%emt 0:00:01]} 31. Rxc5 {[%emt 0:00:59]} Rd2 {[%emt 0:00:11]} 32. Nc2 {[%emt 0:00:46]} Ree2 {[%emt 0:00:19]} 33. Nb4 {[%emt 0:00:20]} a5 {[%emt 0:00:27]} 34. Na6 {[%emt 0:00:15]} Ng4 {[%emt 0:00:28]} 0-1

[Event "Chinese Championship-B Men 2024"]
[Site "Liaocheng"]
[Date "2024.04.24"]
[Round "4.2"]
[White "Zhang, Ziji"]
[Black "Chen, Zimu(Js)"]
[Result "1-0"]
[WhiteElo "2392"]
[BlackElo "2075"]
[PlyCount "147"]
[EventDate "2024.04.24"]
[EventType "swiss"]
[EventCountry "CHN"]
[TimeControl "5400+30"]

1. c4 {[%emt 0:00:11]} d6 {[%emt 0:01:16]} 2. Nc3 {[%emt 0:01:12]} e5 {[%emt 0:00:15]} 3. g3 {[%emt 0:01:42]} f5 {[%emt 0:00:06]} 4. Bg2 {[%emt 0:00:18]} Nf6 {[%emt 0:00:06]} 5. d4 {[%emt 0:02:56]} Be7 {[%emt 0:00:53]} 6. b3 {[%emt 0:03:35]} c6 {[%emt 0:01:15]} 7. Bb2 {[%emt 0:02:23]} O-O {[%emt 0:06:42]} 8. dxe5 {[%emt 0:03:39]} dxe5 {[%emt 0:00:12]} 9. Qxd8 {[%emt 0:00:03]} Bxd8 {[%emt 0:01:09]} 10. Nf3 {[%emt 0:01:35]} Bc7 {[%emt 0:01:37]} 11. O-O {[%emt 0:00:54]} Nbd7 {[%emt 0:04:49]} 12. Rad1 {[%emt 0:02:22]} e4 {[%emt 0:03:00]} 13. Nd4 {[%emt 0:00:18]} Ne5 {[%emt 0:00:06]} 14. f3 {[%emt 0:01:10]} exf3 {[%emt 0:02:07]} 15. exf3 {[%emt 0:00:05]} f4 {[%emt 0:00:12]} 16. Rfe1 {[%emt 0:08:24]} fxg3 {[%emt 0:04:24]} 17. hxg3 {[%emt 0:00:05]} Ng6 {[%emt 0:00:19]} 18. f4 {[%emt 0:03:35]} Bg4 {[%emt 0:01:59]} 19. Bf3 {[%emt 0:00:58]} Bxf3 {[%emt 0:01:17]} 20. Nxf3 {[%emt 0:00:04]} Rae8 {[%emt 0:00:12]} 21. Ng5 {[%emt 0:06:48]} Bb6+ {[%emt 0:05:50]} 22. Kg2 {[%emt 0:01:02]} Ng4 {[%emt 0:10:15]} 23. Bc1 {[%emt 0:20:30]} Rxe1 {[%emt 0:09:14]} 24. Rxe1 {[%emt 0:00:04]} Ba5 {[%emt 0:00:17]} 25. Bb2 {[%emt 0:02:59]} Rd8 {[%emt 0:01:10]} 26. Re2 {[%emt 0:00:17]} h6 {[%emt 0:12:25]} 27. Ne6 {[%emt 0:02:20]} Rd3 {[%emt 0:00:21]} 28. Nc5 {[%emt 0:05:10]} Rxc3 {[%emt 0:01:35]} 29. Bxc3 {[%emt 0:00:02]} Bxc3 {[%emt 0:00:05]} 30. Nxb7 {[%emt 0:00:03]} Kf8 {[%emt 0:00:53]} 31. a3 {[%emt 0:05:36]} Ne7 {[%emt 0:01:47]} 32. b4 {[%emt 0:00:55]} Nf5 {[%emt 0:02:26]} 33. Nd8 {[%emt 0:02:42]} Nge3+ {[%emt 0:02:04]} 34. Kh3 {[%emt 0:00:16]} Nxc4 {[%emt 0:00:51]} 35. Rc2 {[%emt 0:03:57]} Bf6 {[%emt 0:00:03]} 36. Rxc4 {[%emt 0:01:14]} Bxd8 {[%emt 0:00:06]} 37. Rxc6 {[%emt 0:00:01]} Bb6 {[%emt 0:03:08]} 38. a4 {[%emt 0:02:06]} Ne7 {[%emt 0:02:00]} 39. Rd6 {[%emt 0:02:38]} Ke8 {[%emt 0:08:09]} 40. a5 {[%emt 0:00:57]} Bd8 {[%emt 0:02:01]} 41. Kg4 {[%emt 0:02:17]} g6 {[%emt 0:03:56]} 42. Kf3 {[%emt 0:02:41]} h5 {[%emt 0:00:05]} 43. Ke4 {[%emt 0:01:12]} Bc7 {[%emt 0:03:20]} 44. Ra6 {[%emt 0:00:11]} Bb8 {[%emt 0:00:05]} 45. b5 {[%emt 0:00:31]} Kd7 {[%emt 0:00:54]} 46. Kd3 {[%emt 0:05:43]} Kc8 {[%emt 0:01:21]} 47. Kc4 {[%emt 0:00:42]} Kd7 {[%emt 0:01:50]} 48. Kc5 {[%emt 0:00:29]} Kc8 {[%emt 0:00:36]} 49. Re6 {[%emt 0:00:23]} Kd7 {[%emt 0:00:05]} 50. Ra6 {[%emt 0:02:44]} Kc8 {[%emt 0:00:05]} 51. Rf6 {[%emt 0:01:23]} Kd7 {[%emt 0:01:16]} 52. b6 {[%emt 0:00:41]} a6 {[%emt 0:02:24]} 53. b7 {[%emt 0:00:56]} Ba7+ {[%emt 0:00:02]} 54. Kc4 {[%emt 0:00:05]} Nc6 {[%emt 0:00:39]} 55. Rxg6 {[%emt 0:00:40]} Nxa5+ {[%emt 0:00:02]} 56. Kd5 {[%emt 0:00:06]} Nxb7 {[%emt 0:00:03]} 57. Rg7+ {[%emt 0:01:20]} Kc8 {[%emt 0:00:05]} 58. f5 {[%emt 0:00:02]} Be3 {[%emt 0:04:47]} 59. f6 {[%emt 0:00:38]} Nd8 {[%emt 0:01:02]} 60. f7 {[%emt 0:00:56]} Nxf7 {[%emt 0:00:05]} 61. Rxf7 {[%emt 0:00:03]} Bd2 {[%emt 0:00:30]} 62. Ke4 {[%emt 0:01:29]} a5 {[%emt 0:00:56]} 63. Rh7 {[%emt 0:00:09]} Be1 {[%emt 0:00:29]} 64. Kf3 {[%emt 0:00:11]} a4 {[%emt 0:00:26]} 65. Ra7 {[%emt 0:00:23]} h4 {[%emt 0:00:27]} 66. g4 {[%emt 0:00:10]} Kd8 {[%emt 0:00:37]} 67. Rxa4 {[%emt 0:00:14]} Bg3 {[%emt 0:00:26]} 68. Re4 {[%emt 0:01:27]} Bd6 {[%emt 0:00:10]} 69. Kg2 {[%emt 0:00:11]} Be7 {[%emt 0:00:38]} 70. Kh3 {[%emt 0:00:09]} Bf6 {[%emt 0:00:25]} 71. Re6 {[%emt 0:00:22]} Bg5 {[%emt 0:00:01]} 72. Re5 {[%emt 0:00:10]} Bf6 {[%emt 0:01:22]} 73. Rf5 {[%emt 0:00:17]} Ke7 {[%emt 0:00:06]} 74. g5 {[%emt 0:00:07]} 1-0

[Event "Chinese Championship-B Men 2024"]
[Site "Liaocheng"]
[Date "2024.04.24"]
[Round "4.3"]
[White "Jiang, Haochen"]
[Black "Meng, Yihan"]
[Result "1/2-1/2"]
[WhiteElo "2381"]
[BlackElo "2042"]
[PlyCount "98"]
[EventDate "2024.04.24"]
[EventType "swiss"]
[EventCountry "CHN"]
[TimeControl "5400+30"]

1. e4 {[%emt 0:00:02]} e5 {[%emt 0:00:06]} 2. Bc4 {[%emt 0:00:10]} Nf6 {[%emt 0:01:28]} 3. d3 {[%emt 0:00:11]} c6 {[%emt 0:00:31]} 4. Nf3 {[%emt 0:00:07]} d5 {[%emt 0:00:07]} 5. Bb3 {[%emt 0:00:08]} a5 {[%emt 0:00:24]} 6. a4 {[%emt 0:00:11]} Bb4+ {[%emt 0:00:35]} 7. c3 {[%emt 0:06:02]} Bd6 {[%emt 0:00:14]} 8. exd5 {[%emt 0:01:54]} cxd5 {[%emt 0:01:33]} 9. O-O {[%emt 0:02:24]} O-O {[%emt 0:01:36]} 10. Bg5 {[%emt 0:02:36]} Be6 {[%emt 0:00:59]} 11. Na3 {[%emt 0:00:47]} Nbd7 {[%emt 0:02:01]} 12. Nb5 {[%emt 0:00:24]} Bb8 {[%emt 0:00:13]} 13. Re1 {[%emt 0:00:19]} h6 {[%emt 0:13:30]} 14. Bh4 {[%emt 0:00:46]} Re8 {[%emt 0:01:27]} 15. Qc2 {[%emt 0:07:00]} Ra6 {[%emt 0:06:42]} 16. h3 {[%emt 0:07:22]} g5 {[%emt 0:02:18]} 17. Bg3 {[%emt 0:00:59]} Bf5 {[%emt 0:02:48]} 18. Re3 {[%emt 0:03:50]} Bh7 {[%emt 0:19:54]} 19. Qe2 {[%emt 0:33:05]} Rae6 {[%emt 0:06:42]} 20. Re1 {[%emt 0:06:43]} R8e7 {[%emt 0:20:45]} 21. Qd1 {[%emt 0:02:45]} Qe8 {[%emt 0:02:17]} 22. d4 {[%emt 0:12:40]} e4 {[%emt 0:02:58]} 23. Nd2 {[%emt 0:02:17]} Nb6 {[%emt 0:01:34]} 24. Nf1 {[%emt 0:01:06]} Bf4 {[%emt 0:03:49]} 25. R3e2 {[%emt 0:00:56]} Bg6 {[%emt 0:01:44]} 26. Ne3 {[%emt 0:03:23]} Bh5 {[%emt 0:01:08]} 27. Nf5 {[%emt 0:00:05]} Rd7 {[%emt 0:00:56]} 28. f3 {[%emt 0:01:05]} exf3 {[%emt 0:03:39]} 29. gxf3 {[%emt 0:00:25]} Bxg3 {[%emt 0:02:26]} 30. Nxg3 {[%emt 0:02:20]} Rde7 {[%emt 0:00:26]} 31. Nd6 {[%emt 0:00:49]} Qb8 {[%emt 0:00:31]} 32. Nxh5 {[%emt 0:02:33]} Nxh5 {[%emt 0:00:35]} 33. Nf5 {[%emt 0:00:05]} Rxe2 {[%emt 0:00:21]} 34. Rxe2 {[%emt 0:00:27]} Re6 {[%emt 0:00:32]} 35. Qe1 {[%emt 0:01:12]} Nf4 {[%emt 0:00:09]} 36. Nxh6+ {[%emt 0:00:40]} Kg7 {[%emt 0:00:43]} 37. Rxe6 {[%emt 0:00:16]} fxe6 {[%emt 0:00:03]} 38. Ng4 {[%emt 0:00:05]} Nxh3+ {[%emt 0:00:29]} 39. Kf1 {[%emt 0:00:09]} Nf4 {[%emt 0:00:14]} 40. Bc2 {[%emt 0:00:25]} Nd7 {[%emt 0:00:23]} 41. Qg3 {[%emt 0:01:42]} Qh8 {[%emt 0:00:45]} 42. Kf2 {[%emt 0:00:31]} Qh1 {[%emt 0:00:39]} 43. Ne3 {[%emt 0:00:31]} Kf7 {[%emt 0:00:27]} 44. Nf1 {[%emt 0:00:22]} Nh3+ {[%emt 0:01:10]} 45. Ke1 {[%emt 0:00:14]} Kf6 {[%emt 0:00:37]} 46. Qc7 {[%emt 0:00:49]} Nf8 {[%emt 0:00:27]} 47. Qe5+ {[%emt 0:00:33]} Kf7 {[%emt 0:00:11]} 48. Qc7+ {[%emt 0:00:18]} Kf6 {[%emt 0:00:13]} 49. Qe5+ {[%emt 0:00:38]} Kf7 {[%emt 0:00:04]} 1/2-1/2

[Event "Chinese Championship-B Men 2024"]
[Site "Liaocheng"]
[Date "2024.04.24"]
[Round "4.4"]
[White "Cheng, Yuanda"]
[Black "Wu, Yixing"]
[Result "0-1"]
[WhiteElo "2068"]
[BlackElo "2348"]
[PlyCount "66"]
[EventDate "2024.04.24"]
[EventType "swiss"]
[EventCountry "CHN"]
[TimeControl "5400+30"]

1. e4 {[%emt 0:00:04]} c6 {[%emt 0:00:05]} 2. d4 {[%emt 0:00:15]} d5 {[%emt 0:00:06]} 3. Nc3 {[%emt 0:00:32]} dxe4 {[%emt 0:00:06]} 4. Nxe4 {[%emt 0:00:03]} Nf6 {[%emt 0:00:05]} 5. Nxf6+ {[%emt 0:00:42]} exf6 {[%emt 0:00:02]} 6. Bc4 {[%emt 0:02:15]} Bd6 {[%emt 0:00:08]} 7. Nf3 {[%emt 0:02:27]} O-O {[%emt 0:00:08]} 8. O-O {[%emt 0:00:05]} Re8 {[%emt 0:00:06]} 9. h3 {[%emt 0:00:27]} Nd7 {[%emt 0:01:24]} 10. c3 {[%emt 0:02:02]} Nf8 {[%emt 0:01:47]} 11. Qb3 {[%emt 0:01:04]} Qc7 {[%emt 0:01:05]} 12. Bd2 {[%emt 0:00:27]} Bf5 {[%emt 0:00:54]} 13. a4 {[%emt 0:06:51]} Re7 {[%emt 0:05:08]} 14. Rfe1 {[%emt 0:00:45]} g5 {[%emt 0:07:10]} 15. Rxe7 {[%emt 0:09:18]} Qxe7 {[%emt 0:00:06]} 16. Re1 {[%emt 0:00:05]} Qd7 {[%emt 0:00:14]} 17. a5 {[%emt 0:08:17]} Ng6 {[%emt 0:06:21]} 18. Qd1 {[%emt 0:21:06]} Kg7 {[%emt 0:13:18]} 19. d5 {[%emt 0:09:21]} c5 {[%emt 0:01:42]} 20. b4 {[%emt 0:01:09]} b6 {[%emt 0:06:29]} 21. bxc5 {[%emt 0:05:58]} bxc5 {[%emt 0:00:07]} 22. Bc1 {[%emt 0:00:47]} h5 {[%emt 0:04:06]} 23. Bd3 {[%emt 0:10:32]} g4 {[%emt 0:02:49]} 24. Bxf5 {[%emt 0:00:23]} Qxf5 {[%emt 0:00:08]} 25. Nd2 {[%emt 0:01:20]} gxh3 {[%emt 0:06:07]} 26. Ne4 {[%emt 0:00:54]} Be5 {[%emt 0:08:44]} 27. g3 {[%emt 0:02:24]} Rd8 {[%emt 0:07:00]} 28. c4 {[%emt 0:06:41]} Bd4 {[%emt 0:00:12]} 29. Be3 {[%emt 0:00:56]} Ne5 {[%emt 0:02:19]} 30. Bxd4 {[%emt 0:01:49]} Nf3+ {[%emt 0:02:38]} 31. Kh1 {[%emt 0:00:03]} Nxe1 {[%emt 0:05:39]} 32. Nxc5 {[%emt 0:01:28]} Rb8 {[%emt 0:02:21]} 33. Bxf6+ {[%emt 0:04:13]} Qxf6 {[%emt 0:01:26]} 0-1

[Event "Chinese Championship-B Men 2024"]
[Site "Liaocheng"]
[Date "2024.04.24"]
[Round "4.5"]
[White "Li, Zhanjia"]
[Black "Zhang, Di"]
[Result "0-1"]
[WhiteElo "1839"]
[BlackElo "2303"]
[PlyCount "152"]
[EventDate "2024.04.24"]
[EventType "swiss"]
[EventCountry "CHN"]
[TimeControl "5400+30"]

1. d4 {[%emt 0:00:07]} Nf6 {[%emt 0:00:40]} 2. c4 {[%emt 0:00:10]} e6 {[%emt 0:00:11]} 3. Nc3 {[%emt 0:00:05]} d5 {[%emt 0:00:42]} 4. Bg5 {[%emt 0:01:16]} Be7 {[%emt 0:00:20]} 5. e3 {[%emt 0:00:07]} h6 {[%emt 0:01:56]} 6. Bh4 {[%emt 0:00:48]} O-O {[%emt 0:00:13]} 7. cxd5 {[%emt 0:00:36]} exd5 {[%emt 0:00:19]} 8. Bd3 {[%emt 0:01:46]} Nbd7 {[%emt 0:03:27]} 9. Nge2 {[%emt 0:01:20]} b6 {[%emt 0:01:33]} 10. O-O {[%emt 0:01:36]} Bb7 {[%emt 0:00:07]} 11. f3 {[%emt 0:04:09]} c5 {[%emt 0:00:50]} 12. Bf2 {[%emt 0:00:27]} a6 {[%emt 0:04:54]} 13. Kh1 {[%emt 0:02:59]} Re8 {[%emt 0:02:11]} 14. Qd2 {[%emt 0:08:23]} Nf8 {[%emt 0:02:34]} 15. Rad1 {[%emt 0:06:22]} g6 {[%emt 0:14:06]} 16. Bc2 {[%emt 0:06:38]} Qc7 {[%emt 0:09:35]} 17. Bb3 {[%emt 0:11:20]} c4 {[%emt 0:10:01]} 18. Bc2 {[%emt 0:00:03]} Bd6 {[%emt 0:00:08]} 19. Bg3 {[%emt 0:02:46]} h5 {[%emt 0:01:44]} 20. e4 {[%emt 0:17:00]} dxe4 {[%emt 0:09:51]} 21. fxe4 {[%emt 0:00:28]} Nxe4 {[%emt 0:00:53]} 22. Nxe4 {[%emt 0:01:04]} Bxe4 {[%emt 0:00:14]} 23. Bxe4 {[%emt 0:00:26]} Rxe4 {[%emt 0:00:09]} 24. Nc3 {[%emt 0:01:24]} Re6 {[%emt 0:00:19]} 25. d5 {[%emt 0:03:14]} Ree8 {[%emt 0:04:18]} 26. Bxd6 {[%emt 0:01:00]} Qxd6 {[%emt 0:00:01]} 27. Qd4 {[%emt 0:01:24]} f5 {[%emt 0:00:45]} 28. Qxc4 {[%emt 0:00:41]} b5 {[%emt 0:02:01]} 29. Qf4 {[%emt 0:03:08]} Rad8 {[%emt 0:01:51]} 30. a3 {[%emt 0:02:41]} Nh7 {[%emt 0:04:41]} 31. h3 {[%emt 0:05:28]} Nf6 {[%emt 0:02:13]} 32. Qxd6 {[%emt 0:01:07]} Rxd6 {[%emt 0:00:01]} 33. Rf4 {[%emt 0:00:12]} Kf7 {[%emt 0:06:04]} 34. a4 {[%emt 0:03:18]} bxa4 {[%emt 0:00:42]} 35. Rxa4 {[%emt 0:00:05]} g5 {[%emt 0:02:37]} 36. Rda1 {[%emt 0:02:26]} h4 {[%emt 0:01:13]} 37. Kg1 {[%emt 0:01:30]} Rb6 {[%emt 0:02:45]} 38. Rxa6 {[%emt 0:03:37]} Rxb2 {[%emt 0:00:10]} 39. R6a2 {[%emt 0:02:17]} Rxa2 {[%emt 0:05:03]} 40. Rxa2 {[%emt 0:00:03]} Re1+ {[%emt 0:00:16]} 41. Kf2 {[%emt 0:01:38]} Rc1 {[%emt 0:00:12]} 42. Ne2 {[%emt 0:00:34]} Rd1 {[%emt 0:00:14]} 43. Ra7+ {[%emt 0:02:48]} Kg6 {[%emt 0:00:12]} 44. Ra6 {[%emt 0:00:55]} Rxd5 {[%emt 0:00:52]} 45. Nc3 {[%emt 0:01:43]} Rd3 {[%emt 0:01:07]} 46. Nb5 {[%emt 0:01:11]} Kg7 {[%emt 0:03:24]} 47. Ra7+ {[%emt 0:00:33]} Kg8 {[%emt 0:00:21]} 48. Ra8+ {[%emt 0:00:55]} Kf7 {[%emt 0:00:11]} 49. Ra3 {[%emt 0:00:37]} Rd2+ {[%emt 0:01:15]} 50. Kf1 {[%emt 0:00:30]} Ne4 {[%emt 0:00:11]} 51. Nc3 {[%emt 0:00:19]} Ng3+ {[%emt 0:00:09]} 52. Kg1 {[%emt 0:00:07]} Rc2 {[%emt 0:02:05]} 53. Nd1 {[%emt 0:00:28]} Kf6 {[%emt 0:00:54]} 54. Ra1 {[%emt 0:00:35]} Ne4 {[%emt 0:01:16]} 55. Ne3 {[%emt 0:00:37]} Rc6 {[%emt 0:00:56]} 56. Rf1 {[%emt 0:00:51]} Ng3 {[%emt 0:00:18]} 57. Re1 {[%emt 0:00:22]} Rd6 {[%emt 0:00:36]} 58. Nf1 {[%emt 0:00:14]} Ne4 {[%emt 0:00:35]} 59. Ne3 {[%emt 0:00:12]} Rd3 {[%emt 0:00:18]} 60. Nf1 {[%emt 0:00:24]} Ke5 {[%emt 0:00:30]} 61. Nh2 {[%emt 0:01:02]} Ra3 {[%emt 0:00:55]} 62. Rf1 {[%emt 0:00:45]} Ra2 {[%emt 0:00:28]} 63. Nf3+ {[%emt 0:00:33]} Kf6 {[%emt 0:00:13]} 64. Nh2 {[%emt 0:00:15]} Nc3 {[%emt 0:00:26]} 65. Re1 {[%emt 0:00:25]} Ne2+ {[%emt 0:00:13]} 66. Kh1 {[%emt 0:00:28]} Nf4 {[%emt 0:00:05]} 67. Rg1 {[%emt 0:00:39]} Rf2 {[%emt 0:00:15]} 68. Nf3 {[%emt 0:00:45]} Nxg2 {[%emt 0:01:04]} 69. Nxg5 {[%emt 0:00:22]} Kxg5 {[%emt 0:00:23]} 70. Rxg2+ {[%emt 0:00:03]} Rxg2 {[%emt 0:00:06]} 71. Kxg2 {[%emt 0:00:04]} Kf4 {[%emt 0:00:04]} 72. Kf2 {[%emt 0:00:02]} Ke4 {[%emt 0:00:11]} 73. Ke2 {[%emt 0:00:08]} f4 {[%emt 0:00:04]} 74. Kf2 {[%emt 0:00:10]} f3 {[%emt 0:00:03]} 75. Kf1 {[%emt 0:00:29]} Kf5 {[%emt 0:00:14]} 76. Kg1 {[%emt 0:00:30]} Ke5 {[%emt 0:00:04]} 0-1

[Event "Chinese Championship-B Men 2024"]
[Site "Liaocheng"]
[Date "2024.04.24"]
[Round "4.7"]
[White "Li, Yage"]
[Black "Xi, Qi"]
[Result "0-1"]
[WhiteElo "1916"]
[BlackElo "2217"]
[PlyCount "58"]
[EventDate "2024.04.24"]
[EventType "swiss"]
[EventCountry "CHN"]
[TimeControl "5400+30"]

1. c4 {[%emt 0:00:01]} e6 {[%emt 0:02:24]} 2. Nc3 {[%emt 0:00:31]} d5 {[%emt 0:00:06]} 3. e3 {[%emt 0:00:12]} Nf6 {[%emt 0:00:45]} 4. Nf3 {[%emt 0:00:11]} c6 {[%emt 0:00:54]} 5. b3 {[%emt 0:00:45]} Bd6 {[%emt 0:00:42]} 6. Bb2 {[%emt 0:00:14]} O-O {[%emt 0:00:11]} 7. d4 {[%emt 0:00:33]} Nbd7 {[%emt 0:00:33]} 8. Bd3 {[%emt 0:00:21]} e5 {[%emt 0:05:10]} 9. cxd5 {[%emt 0:03:39]} cxd5 {[%emt 0:00:18]} 10. dxe5 {[%emt 0:00:56]} Nxe5 {[%emt 0:00:08]} 11. Nxe5 {[%emt 0:04:20]} Bxe5 {[%emt 0:00:02]} 12. O-O {[%emt 0:14:58]} Be6 {[%emt 0:17:46]} 13. Na4 {[%emt 0:05:15]} Bxb2 {[%emt 0:10:00]} 14. Nxb2 {[%emt 0:00:04]} Rc8 {[%emt 0:03:58]} 15. Na4 {[%emt 0:11:57]} Qd6 {[%emt 0:01:04]} 16. Rc1 {[%emt 0:01:51]} Ng4 {[%emt 0:02:31]} 17. g3 {[%emt 0:00:17]} Ne5 {[%emt 0:00:36]} 18. Be2 {[%emt 0:04:09]} Bh3 {[%emt 0:06:20]} 19. Re1 {[%emt 0:01:03]} Rxc1 {[%emt 0:01:00]} 20. Qxc1 {[%emt 0:00:05]} Qb4 {[%emt 0:11:47]} 21. Qb1 {[%emt 0:06:57]} d4 {[%emt 0:10:45]} 22. exd4 {[%emt 0:01:30]} Qxd4 {[%emt 0:00:11]} 23. Rd1 {[%emt 0:01:29]} Qb4 {[%emt 0:00:11]} 24. Rd5 {[%emt 0:07:10]} Re8 {[%emt 0:01:53]} 25. a3 {[%emt 0:17:18]} Qxa3 {[%emt 0:01:44]} 26. Nc3 {[%emt 0:05:22]} h6 {[%emt 0:02:01]} 27. Qe4 {[%emt 0:02:01]} Qc1+ {[%emt 0:05:14]} 28. Nd1 {[%emt 0:00:16]} Qc6 {[%emt 0:00:54]} 29. b4 {[%emt 0:07:47]} Ng4 {[%emt 0:02:57]} 0-1

[Event "Chinese Championship-B Men 2024"]
[Site "Liaocheng"]
[Date "2024.04.24"]
[Round "4.8"]
[White "Pan, Shi Tian Yu"]
[Black "Gong, Changda"]
[Result "1/2-1/2"]
[WhiteElo "2166"]
[BlackElo "2170"]
[PlyCount "60"]
[EventDate "2024.04.24"]
[EventType "swiss"]
[EventCountry "CHN"]
[TimeControl "5400+30"]

1. e4 {[%emt 0:00:03]} e5 {[%emt 0:00:27]} 2. Nf3 {[%emt 0:00:15]} Nc6 {[%emt 0:00:12]} 3. Bb5 {[%emt 0:00:25]} a6 {[%emt 0:00:05]} 4. Ba4 {[%emt 0:00:07]} Nf6 {[%emt 0:00:06]} 5. O-O {[%emt 0:00:08]} b5 {[%emt 0:00:28]} 6. Bb3 {[%emt 0:00:07]} Bc5 {[%emt 0:00:08]} 7. Re1 {[%emt 0:02:52]} d6 {[%emt 0:01:25]} 8. c3 {[%emt 0:00:46]} h6 {[%emt 0:03:47]} 9. h3 {[%emt 0:04:02]} O-O {[%emt 0:00:13]} 10. d4 {[%emt 0:02:17]} Bb6 {[%emt 0:00:19]} 11. dxe5 {[%emt 0:04:53]} Nxe5 {[%emt 0:01:14]} 12. Nxe5 {[%emt 0:01:30]} dxe5 {[%emt 0:00:03]} 13. Qe2 {[%emt 0:00:45]} Bb7 {[%emt 0:07:11]} 14. Bc2 {[%emt 0:00:24]} Ne8 {[%emt 0:12:14]} 15. Be3 {[%emt 0:01:59]} c5 {[%emt 0:04:44]} 16. a4 {[%emt 0:02:41]} Nd6 {[%emt 0:02:17]} 17. Nd2 {[%emt 0:01:30]} c4 {[%emt 0:01:40]} 18. Red1 {[%emt 0:01:25]} Qc7 {[%emt 0:05:42]} 19. f3 {[%emt 0:04:42]} Bxe3+ {[%emt 0:06:06]} 20. Qxe3 {[%emt 0:00:07]} Rfb8 {[%emt 0:01:03]} 21. Nf1 {[%emt 0:01:18]} bxa4 {[%emt 0:04:39]} 22. Bxa4 {[%emt 0:00:45]} Bc8 {[%emt 0:02:20]} 23. Qf2 {[%emt 0:04:26]} Be6 {[%emt 0:02:26]} 24. Ne3 {[%emt 0:01:12]} Qc5 {[%emt 0:01:44]} 25. Ra2 {[%emt 0:08:30]} Rb6 {[%emt 0:03:20]} 26. Nd5 {[%emt 0:05:50]} Qxf2+ {[%emt 0:00:05]} 27. Kxf2 {[%emt 0:00:05]} Bxd5 {[%emt 0:00:10]} 28. Rxd5 {[%emt 0:00:04]} f6 {[%emt 0:00:27]} 29. Ke1 {[%emt 0:01:56]} Kf8 {[%emt 0:01:42]} 30. Kd1 {[%emt 0:01:01]} Ke7 {[%emt 0:02:01]} 1/2-1/2

[Event "Chinese Championship-B Men 2024"]
[Site "Liaocheng"]
[Date "2024.04.24"]
[Round "4.9"]
[White "Zhu, Yilun"]
[Black "Zhang, Haoxuan(Zj)"]
[Result "1/2-1/2"]
[WhiteElo "2125"]
[BlackElo "1851"]
[PlyCount "101"]
[EventDate "2024.04.24"]
[EventType "swiss"]
[EventCountry "CHN"]
[TimeControl "5400+30"]

1. Nf3 {[%emt 0:00:03]} c5 {[%emt 0:00:04]} 2. b3 {[%emt 0:00:03]} Nc6 {[%emt 0:02:52]} 3. Bb2 {[%emt 0:00:18]} d5 {[%emt 0:02:10]} 4. e3 {[%emt 0:01:18]} e6 {[%emt 0:03:32]} 5. Bb5 {[%emt 0:03:19]} Bd7 {[%emt 0:00:24]} 6. O-O {[%emt 0:00:07]} Nf6 {[%emt 0:01:38]} 7. c4 {[%emt 0:00:07]} Bd6 {[%emt 0:01:59]} 8. cxd5 {[%emt 0:00:16]} exd5 {[%emt 0:00:27]} 9. d4 {[%emt 0:00:04]} cxd4 {[%emt 0:04:44]} 10. Nxd4 {[%emt 0:01:08]} O-O {[%emt 0:00:20]} 11. Nxc6 {[%emt 0:04:16]} bxc6 {[%emt 0:00:31]} 12. Be2 {[%emt 0:00:08]} Qe7 {[%emt 0:01:26]} 13. Nd2 {[%emt 0:00:42]} c5 {[%emt 0:04:00]} 14. Rc1 {[%emt 0:02:36]} Rfd8 {[%emt 0:01:58]} 15. Re1 {[%emt 0:01:23]} Rac8 {[%emt 0:01:52]} 16. Bf3 {[%emt 0:01:41]} Bf5 {[%emt 0:04:48]} 17. Qe2 {[%emt 0:01:28]} Ne4 {[%emt 0:04:00]} 18. Bxe4 {[%emt 0:06:41]} dxe4 {[%emt 0:00:47]} 19. Nc4 {[%emt 0:03:58]} Bc7 {[%emt 0:01:41]} 20. Rcd1 {[%emt 0:08:57]} Rd3 {[%emt 0:01:22]} 21. Rxd3 {[%emt 0:01:21]} exd3 {[%emt 0:00:21]} 22. Qf3 {[%emt 0:02:55]} Be4 {[%emt 0:02:03]} 23. Qh3 {[%emt 0:02:41]} Rd8 {[%emt 0:00:44]} 24. Rd1 {[%emt 0:01:30]} Qg5 {[%emt 0:03:20]} 25. Nd2 {[%emt 0:14:08]} Bf5 {[%emt 0:04:29]} 26. Nf3 {[%emt 0:00:09]} Bxh3 {[%emt 0:01:57]} 27. Nxg5 {[%emt 0:00:02]} Bf5 {[%emt 0:00:30]} 28. Bc3 {[%emt 0:04:16]} a5 {[%emt 0:00:47]} 29. e4 {[%emt 0:01:10]} Bg6 {[%emt 0:01:55]} 30. f3 {[%emt 0:01:37]} a4 {[%emt 0:02:24]} 31. Kf2 {[%emt 0:03:47]} axb3 {[%emt 0:00:56]} 32. axb3 {[%emt 0:00:01]} h6 {[%emt 0:00:08]} 33. Nh3 {[%emt 0:00:09]} Rb8 {[%emt 0:00:34]} 34. Ke3 {[%emt 0:10:26]} Rxb3 {[%emt 0:03:31]} 35. Kxd3 {[%emt 0:00:02]} Be5 {[%emt 0:00:21]} 36. Rc1 {[%emt 0:00:07]} f5 {[%emt 0:00:17]} 37. Kd2 {[%emt 0:08:47]} Bxc3+ {[%emt 0:01:43]} 38. Rxc3 {[%emt 0:00:02]} Rxc3 {[%emt 0:03:16]} 39. Kxc3 {[%emt 0:00:03]} fxe4 {[%emt 0:00:06]} 40. fxe4 {[%emt 0:00:09]} Bxe4 {[%emt 0:00:05]} 41. g3 {[%emt 0:00:03]} Bf5 {[%emt 0:00:42]} 42. Nf2 {[%emt 0:01:05]} Be6 {[%emt 0:01:50]} 43. Nd3 {[%emt 0:00:12]} c4 {[%emt 0:01:50]} 44. Ne5 {[%emt 0:00:03]} Kh7 {[%emt 0:02:43]} 45. Nxc4 {[%emt 0:00:37]} Bxc4 {[%emt 0:00:34]} 46. Kxc4 {[%emt 0:00:01]} Kg6 {[%emt 0:00:39]} 47. Kd4 {[%emt 0:00:13]} Kf5 {[%emt 0:00:07]} 48. Ke3 {[%emt 0:00:02]} g5 {[%emt 0:00:52]} 49. h3 {[%emt 0:00:35]} h5 {[%emt 0:00:46]} 50. Kf3 {[%emt 0:00:14]} Ke5 {[%emt 0:00:10]} 51. Ke3 {[%emt 0:00:24]} 1/2-1/2